fUSD/lending_fUSD_20240629
["ID","MTS","AMOUNT","RATE_DAILY","PERIOD"]
[330678428,1719705032106,-1147.05,0.00013698,3]
[330678429,1719705032117,-1606.94,0.00013698,3]
[330678430,1719705032126,-1175.79,0.00013698,3]
[330678431,1719705032138,-1998.03,0.00013698,3]
[330678432,1719705032147,-3718.71,0.00013698,3]
[330678433,1719705032157,-2852.23589632,0.00013698,3]
[330678434,1719705032170,-1157.49476173,0.00013698,3]
[330678435,1719705032183,-51.72934195,0.00013698,3]
[330678436,1719705032192,-297.27065805,0.00013698,3]
[330678437,1719705032203,-412.81053676,0.00013698,3]
[330678438,1719705032219,-493.58880519,0.00013698,3]
[330678439,1719705032229,-500.0,0.00013698,3]
[330678440,1719705032238,-1660.66,0.00013698,3]
[330678441,1719705032247,-500.0,0.00013698,3]
[330678442,1719705032256,-500.0,0.00013698,3]
[330678443,1719705032265,-400.19119481,0.00013698,3]
[330678444,1719705032276,-99.80880519,0.00013698,3]
[330678445,1719705032286,-500.0,0.00013698,3]
[330678446,1719705032295,-500.0,0.00013698,3]
[330678447,1719705032305,-501.79,0.00013698,3]
[330678448,1719705032313,-1760.24119471,0.00013698,3]
[330678449,1719705032324,-3522.48880529,0.00013698,3]
[330678450,1719705032333,-30.8704265,0.00013698,3]
[330678451,1719705032344,-538.3395735,0.00013698,3]
[330678452,1719705032353,-202.24282757,0.00013698,3]
[330678453,1719705032366,-297.75717243,0.00013698,3]
[330678454,1719705032375,-483.97026886,0.00013698,3]
[330678455,1719705032386,-16.02973114,0.00013698,3]
[330678456,1719705032395,-500.0,0.00013698,3]
[330678457,1719705032404,-500.0,0.00013698,3]
[330678458,1719705032413,-500.0,0.00013698,3]
[330678459,1719705032422,-500.0,0.00013698,3]
[330678460,1719705032432,-564.31852612,0.00013698,3]
[330678461,1719705032441,-500.0,0.00013698,3]
[330678462,1719705032450,-325.9861082,0.00013698,3]
[330678463,1719705032462,-267.7638918,0.00013698,3]
[330678464,1719705032470,-500.0,0.00013698,3]
[330678465,1719705032479,-500.0,0.00013698,3]
[330678466,1719705032488,-770.98,0.00013698,3]
[330678467,1719705032498,-500.0,0.00013698,3]
[330678468,1719705032506,-712.62,0.00013698,3]
[330678469,1719705032516,-500.0,0.00013698,3]
[330678470,1719705032525,-500.0,0.00013698,3]
[330678471,1719705032534,-500.0,0.00013698,3]
[330678472,1719705032543,-1536.32,0.00013698,3]
[330678473,1719705032553,-500.0,0.00013698,3]
[330678474,1719705032562,-500.0,0.00013698,3]
[330678475,1719705032571,-500.0,0.00013698,3]
[330678476,1719705032581,-500.0,0.00013698,3]
[330678477,1719705032590,-152.20908818,0.00013698,3]
[330678478,1719705032602,-347.79091182,0.00013698,3]
[330678479,1719705032611,-106.2059046,0.00013698,3]
[330678480,1719705032623,-393.7940954,0.00013698,3]
[330678481,1719705032632,-500.0,0.00013698,3]
[330678482,1719705032642,-500.0,0.00013698,3]
[330678483,1719705032652,-500.0,0.00013698,3]
[330678484,1719705032660,-500.0,0.00013698,3]
[330678485,1719705032669,-500.0,0.00013698,3]
[330678486,1719705032679,-1344.53,0.00013698,3]
[330678487,1719705032688,-500.0,0.00013698,3]
[330678488,1719705032697,-500.0,0.00013698,3]
[330678489,1719705032706,-500.0,0.00013698,3]
[330678490,1719705032715,-500.0,0.00013698,3]
[330678491,1719705032724,-500.0,0.00013698,3]
[330678492,1719705032734,-500.0,0.00013698,3]
[330678493,1719705032743,-500.0,0.00013698,3]
[330678494,1719705032753,-500.0,0.00013698,3]
[330678495,1719705032762,-500.0,0.00013698,3]
[330678496,1719705032771,-500.0,0.00013698,3]
[330678497,1719705032780,-500.0,0.00013698,3]
[330678498,1719705032789,-500.0,0.00013698,3]
[330678499,1719705032799,-500.0,0.00013698,3]
[330678500,1719705032807,-521.06,0.00013698,3]
[330678501,1719705032816,-500.0,0.00013698,3]
[330678502,1719705032826,-500.0,0.00013698,3]
[330678503,1719705032835,-500.0,0.00013698,3]
[330678504,1719705032844,-500.0,0.00013698,3]
[330678505,1719705032853,-500.0,0.00013698,3]
[330678506,1719705032862,-500.0,0.00013698,2]
[330678507,1719705032872,-535.03,0.00013698,3]
[330678508,1719705032882,-500.0,0.00013698,3]
[330678509,1719705032891,-500.0,0.00013698,3]
[330678510,1719705032900,-592.23,0.00013698,3]
[330678511,1719705032909,-500.0,0.00013698,3]
[330678512,1719705032919,-500.0,0.00013698,3]
[330678513,1719705032928,-500.0,0.00013698,3]
[330678514,1719705032937,-500.0,0.00013698,3]
[330678515,1719705032946,-575.73,0.00013698,3]
[330678516,1719705032955,-500.0,0.00013698,3]
[330678517,1719705032964,-133.11162229,0.00013698,3]
[330678518,1719705032978,-500.0,0.00013698,3]
[330678535,1719705037909,-629.50837771,0.00013698,3]
[330678536,1719705037919,-58.99162229,0.00013698,3]
[330678537,1719705037931,-441.00837771,0.00013698,3]
[330678538,1719705037942,-381.98989048,0.00013698,3]
[330678539,1719705037953,-118.01010952,0.00013698,3]
[330678540,1719705037963,-500.0,0.00013698,3]
[330678541,1719705037973,-419.54447727,0.00013698,3]
[330678542,1719705037982,-500.0,0.00013698,3]
[330678543,1719705037992,-500.0,0.00013698,3]
[330678544,1719705038002,-500.0,0.00013698,3]
[330678545,1719705038011,-500.0,0.00013698,3]
[330678546,1719705038021,-500.0,0.00013698,3]
[330678547,1719705038031,-500.0,0.00013698,3]
[330678548,1719705038040,-500.0,0.00013698,3]
[330678549,1719705038050,-500.0,0.00013698,3]
[330678550,1719705038064,-363.79713303,0.00013698,3]
[330678551,1719705038077,-136.20286697,0.00013698,3]
[330678552,1719705038086,-1033.22,0.00013698,3]
[330678553,1719705038097,-500.0,0.00013698,3]
[330678554,1719705038108,-547.03,0.00013698,3]
[330678555,1719705038118,-500.0,0.00013698,3]
[330678556,1719705038128,-500.0,0.00013698,3]
[330678557,1719705038139,-500.0,0.00013698,3]
[330678558,1719705038150,-500.0,0.00013698,3]
[330678559,1719705038160,-517.29,0.00013698,3]
[330678560,1719705038169,-500.0,0.00013698,3]
[330678561,1719705038179,-500.0,0.00013698,3]
[330678562,1719705038191,-1000.98,0.00013698,3]
[330678563,1719705038200,-500.0,0.00013698,3]
[330678564,1719705038210,-500.0,0.00013698,3]
[330678565,1719705038220,-613.59,0.00013698,3]
[330678566,1719705038231,-534.73995763,0.00013698,3]
[330678567,1719705038243,-62.93004237,0.00013698,3]
[330678568,1719705038253,-500.0,0.00013698,3]
[330678569,1719705038264,-500.0,0.00013698,3]
[330678570,1719705038274,-500.0,0.00013698,3]
[330678571,1719705038284,-1315.28,0.00013698,3]
[330678593,1719705038571,-500.0,0.00013698,3]
[330678595,1719705038584,-230.97220595,0.00013698,3]
[330678597,1719705038596,-278.07779405,0.00013698,3]
[330678599,1719705038607,-500.0,0.00013698,3]
[330678601,1719705038616,-500.0,0.00013698,3]
[330678603,1719705038626,-500.0,0.00013698,3]
[330678605,1719705038635,-539.8,0.00013698,3]
[330678606,1719705038646,-500.0,0.00013698,3]
[330678607,1719705038655,-500.0,0.00013698,3]
[330678608,1719705038665,-500.0,0.00013698,3]
[330678609,1719705038676,-2000.0,0.00013698,2]
[330678610,1719705038687,-1347.65,0.00013698,3]
[330678611,1719705038696,-500.0,0.00013698,3]
[330678612,1719705038705,-500.0,0.00013698,3]
[330678613,1719705038714,-500.0,0.00013698,3]
[330678614,1719705038724,-261.52220623,0.00013698,3]
[330678615,1719705038737,-238.47779377,0.00013698,3]
[330678616,1719705038747,-346.94041447,0.00013698,3]
[330678618,1719705038759,-467.15958553,0.00013698,3]
[330678620,1719705038768,-500.0,0.00013698,3]
[330678622,1719705038777,-500.0,0.00013698,3]
[330678623,1719705038787,-696.36,0.00013698,3]
[330678625,1719705038797,-500.0,0.00013698,3]
[330678628,1719705038807,-500.0,0.00013698,3]
[330678630,1719705038817,-501.68,0.00013698,3]
[330678632,1719705038826,-500.0,0.00013698,3]
[330678634,1719705038836,-500.0,0.00013698,3]
[330678636,1719705038846,-573.89,0.00013698,3]
[330678638,1719705038855,-1013.02,0.00013698,3]
[330678640,1719705038865,-385.00595172,0.00013698,3]
[330678642,1719705038875,-547.65,0.00013698,3]
[330678644,1719705038884,-500.0,0.00013698,3]
[330678646,1719705038894,-500.0,0.00013698,3]
[330678648,1719705038904,-529.84,0.00013698,3]
[330678650,1719705038913,-500.0,0.00013698,3]
[330678652,1719705038923,-1005.03,0.00013698,3]
[330678654,1719705038933,-500.0,0.00013698,3]
[330678656,1719705038943,-913.76,0.00013698,3]
[330678658,1719705038952,-500.0,0.00013698,3]
[330678660,1719705038962,-500.0,0.00013698,3]
[330678662,1719705038971,-500.0,0.00013698,3]
[330678664,1719705038981,-500.0,0.00013698,3]
[330678666,1719705038990,-542.65,0.00013698,3]
[330678668,1719705038999,-813.74,0.00013698,3]
[330678670,1719705039010,-500.0,0.00013698,3]
[330678672,1719705039021,-463.39343374,0.00013698,3]
[330678674,1719705039031,-500.0,0.00013698,3]
[330678676,1719705039042,-517.14,0.00013698,3]
[330678678,1719705039055,-1193.04,0.00013698,3]
[330678680,1719705039065,-500.0,0.00013698,3]
[330678682,1719705039076,-500.0,0.00013698,3]
[330678684,1719705039086,-500.0,0.00013698,3]
[330678686,1719705039095,-500.0,0.00013698,3]
[330678688,1719705039105,-500.0,0.00013698,3]
[330678690,1719705039115,-500.0,0.00013698,3]
[330678691,1719705039125,-500.0,0.00013698,3]
[330678693,1719705039135,-500.0,0.00013698,3]
[330678696,1719705039147,-500.0,0.00013698,3]
[330678698,1719705039157,-515.54,0.00013698,3]
[330678700,1719705039167,-500.0,0.00013698,3]
[330678702,1719705039177,-500.0,0.00013698,3]
[330678703,1719705039188,-500.0,0.00013698,3]
[330678705,1719705039199,-664.07,0.00013698,3]
[330678708,1719705039210,-500.0,0.00013698,3]
[330678710,1719705039222,-500.0,0.00013698,3]
[330678712,1719705039233,-774.34,0.00013698,3]
[330678714,1719705039243,-500.0,0.00013698,3]
[330678716,1719705039254,-500.0,0.00013698,3]
[330678718,1719705039265,-500.0,0.00013698,3]
[330678720,1719705039276,-653.34,0.00013698,3]
[330678722,1719705039287,-517.71,0.00013698,3]
[330678724,1719705039297,-500.0,0.00013698,3]
[330678726,1719705039308,-500.0,0.00013698,3]
[330678728,1719705039318,-500.0,0.00013698,3]
[330678730,1719705039328,-530.32,0.00013698,3]
[330678732,1719705039338,-631.71,0.00013698,3]
[330678734,1719705039348,-500.0,0.00013698,3]
[330678735,1719705039358,-500.0,0.00013698,3]
[330678736,1719705039368,-702.82,0.00013698,3]
[330678737,1719705039378,-500.0,0.00013698,3]
[330678738,1719705039388,-500.0,0.00013698,3]
[330678739,1719705039398,-500.0,0.00013698,3]
[330678740,1719705039408,-852.53,0.00013698,3]
[330678741,1719705039418,-362.71047964,0.00013698,3]
[330678742,1719705039427,-500.0,0.00013698,3]
[330678743,1719705039437,-651.74,0.00013698,3]
[330678744,1719705039446,-540.54,0.00013698,3]
[330678745,1719705039456,-500.0,0.00013698,3]
[330678746,1719705039466,-500.0,0.00013698,3]
[330678747,1719705039476,-500.0,0.00013698,3]
[330678748,1719705039486,-500.0,0.00013698,3]
[330678749,1719705039496,-1163.23,0.00013698,3]
[330678750,1719705039506,-500.0,0.00013698,3]
[330678751,1719705039516,-888.31,0.00013698,3]
[330678752,1719705039526,-500.0,0.00013698,3]
[330678753,1719705039536,-500.0,0.00013698,3]
[330678754,1719705039546,-1260.7,0.00013698,3]
[330678755,1719705039555,-500.62,0.00013698,3]
[330678756,1719705039565,-500.0,0.00013698,3]
[330678757,1719705039574,-500.0,0.00013698,3]
[330678758,1719705039584,-720.21,0.00013698,3]
[330678759,1719705039594,-500.0,0.00013698,3]
[330678760,1719705039605,-500.0,0.00013698,3]
[330678761,1719705039614,-500.0,0.00013698,3]
[330678762,1719705039624,-500.0,0.00013698,3]
[330678763,1719705039633,-646.33,0.00013698,3]
[330678764,1719705039643,-1213.21,0.00013698,3]
[330678765,1719705039652,-500.0,0.00013698,3]
[330678766,1719705039662,-500.0,0.00013698,3]
[330678767,1719705039672,-500.0,0.00013698,3]
[330678768,1719705039682,-500.0,0.00013698,3]
[330678769,1719705039691,-784.07,0.00013698,3]
[330678770,1719705039700,-500.0,0.00013698,3]
[330678771,1719705039710,-1223.9,0.00013698,3]
[330678772,1719705039721,-781.68,0.00013698,3]
[330678773,1719705039730,-500.0,0.00013698,3]
[330678774,1719705039743,-500.0,0.00013698,3]
[330678775,1719705039752,-500.0,0.00013698,3]
[330678776,1719705039762,-862.2,0.00013698,3]
[330678777,1719705039772,-500.0,0.00013698,3]
[330678778,1719705039781,-748.35,0.00013698,3]
[330678779,1719705039791,-500.0,0.00013698,3]
[330678780,1719705039800,-500.0,0.00013698,3]
[330678781,1719705039809,-618.84,0.00013698,3]
[330678782,1719705039819,-500.0,0.00013698,3]
[330678783,1719705039828,-500.0,0.00013698,3]
[330678784,1719705039838,-891.36,0.00013698,3]
[330678785,1719705039848,-500.0,0.00013698,3]
[330678786,1719705039857,-500.0,0.00013698,3]
[330678787,1719705039867,-500.0,0.00013698,3]
[330678788,1719705039876,-855.22,0.00013698,3]
[330678789,1719705039886,-1092.88,0.00013698,3]
[330678790,1719705039895,-500.0,0.00013698,3]
[330678791,1719705039904,-500.0,0.00013698,3]
[330678792,1719705039914,-1321.22,0.00013698,3]
[330678793,1719705039923,-656.32,0.00013698,3]
[330678794,1719705039933,-1571.03,0.00013698,3]
[330678795,1719705039943,-500.0,0.00013698,3]
[330678796,1719705039952,-745.48,0.00013698,3]
[330678797,1719705039962,-500.0,0.00013698,3]
[330678798,1719705039971,-500.0,0.00013698,3]
[330678799,1719705039981,-697.74,0.00013698,3]
[330678800,1719705039990,-500.0,0.00013698,3]
[330678801,1719705040000,-780.94,0.00013698,3]
[330678802,1719705040009,-561.99,0.00013698,3]
[330678803,1719705040019,-1032.82,0.00013698,3]
[330678804,1719705040029,-500.0,0.00013698,3]
[330678805,1719705040038,-500.0,0.00013698,3]
[330678806,1719705040050,-505.94,0.00013698,3]
[330678807,1719705040067,-508.67,0.00013698,3]
[330678808,1719705040076,-500.0,0.00013698,3]
[330678809,1719705040086,-681.36,0.00013698,3]
[330678810,1719705040096,-500.0,0.00013698,3]
[330678811,1719705040107,-500.0,0.00013698,3]
[330678812,1719705040117,-669.08,0.00013698,3]
[330678813,1719705040126,-678.34,0.00013698,3]
[330678814,1719705040138,-1248.34,0.00013698,3]
[330678815,1719705040148,-500.0,0.00013698,3]
[330678816,1719705040157,-500.0,0.00013698,3]
[330678817,1719705040167,-536.66,0.00013698,3]
[330678818,1719705040177,-500.0,0.00013698,3]
[330678819,1719705040187,-500.0,0.00013698,3]
[330678820,1719705040197,-522.56,0.00013698,3]
[330678821,1719705040206,-500.0,0.00013698,3]
[330678822,1719705040216,-735.16,0.00013698,3]
[330678823,1719705040227,-681.59,0.00013698,3]
[330678824,1719705040236,-845.51,0.00013698,3]
[330678825,1719705040247,-500.0,0.00013698,3]
[330678826,1719705040257,-506.25,0.00013698,3]
[330678827,1719705040267,-629.52,0.00013698,3]
[330678828,1719705040277,-718.72,0.00013698,3]
[330678829,1719705040287,-686.97,0.00013698,3]
[330678830,1719705040296,-500.0,0.00013698,3]
[330678831,1719705040306,-500.0,0.00013698,3]
[330678832,1719705040315,-685.01,0.00013698,3]
[330678833,1719705040325,-1573.96,0.00013698,3]
[330678834,1719705040335,-1064.51,0.00013698,3]
[330678835,1719705040344,-543.79,0.00013698,3]
[330678836,1719705040354,-2155.36,0.00013698,3]
[330678837,1719705040363,-511.27,0.00013698,3]
[330678838,1719705040373,-500.0,0.00013698,3]
[330678839,1719705040383,-510.4,0.00013698,3]
[330678840,1719705040393,-500.0,0.00013698,3]
[330678841,1719705040403,-500.0,0.00013698,3]
[330678843,1719705040412,-2041.61,0.00013698,3]
[330678846,1719705040422,-500.0,0.00013698,3]
[330678847,1719705040433,-587.95,0.00013698,3]
[330678849,1719705040443,-505.95,0.00013698,3]
[330678851,1719705040452,-500.0,0.00013698,3]
[330678854,1719705040464,-546.14,0.00013698,3]
[330678855,1719705040475,-252.04999998,0.00013698,3]
[330678857,1719705040485,-500.0,0.00013698,3]
[330678859,1719705040496,-500.0,0.00013698,3]
[330678862,1719705040506,-718.99,0.00013698,3]
[330678863,1719705040515,-181.34624756,0.00013698,3]
[330678866,1719705040525,-500.0,0.00013698,3]
[330678868,1719705040534,-1407.22,0.00013698,3]
[330678870,1719705040544,-1087.14,0.00013698,3]
[330678872,1719705040554,-5450.43,0.00013698,3]
[330678874,1719705040564,-1204.67,0.00013698,3]
[330678876,1719705040574,-788.92,0.00013698,3]
[330678878,1719705040584,-2175.47,0.00013698,3]
[330678880,1719705040593,-867.95,0.00013698,3]
[330678881,1719705040603,-606.58,0.00013698,3]
[330678883,1719705040612,-1018.1,0.00013698,3]
[330678885,1719705040621,-500.0,0.00013698,3]
[330678886,1719705040631,-864.97,0.00013698,3]
[330678887,1719705040640,-500.0,0.00013698,3]
[330678888,1719705040649,-500.0,0.00013698,3]
[330678889,1719705040659,-548.17,0.00013698,3]
[330678890,1719705040668,-500.0,0.00013698,3]
[330678891,1719705040678,-500.0,0.00013698,3]
[330678892,1719705040690,-706.28,0.00013698,3]
[330678893,1719705040700,-500.0,0.00013698,3]
[330678894,1719705040710,-951.3,0.00013698,3]
[330678895,1719705040719,-500.0,0.00013698,3]
[330678896,1719705040729,-500.0,0.00013698,3]
[330678897,1719705040738,-1174.51,0.00013698,3]
[330678898,1719705040748,-500.0,0.00013698,3]
[330678899,1719705040758,-500.0,0.00013698,3]
[330678900,1719705040768,-666.62,0.00013698,3]
[330678901,1719705040777,-500.0,0.00013698,3]
[330678902,1719705040786,-2942.61,0.00013698,3]
[330678903,1719705040796,-539.76,0.00013698,3]
[330678904,1719705040806,-500.0,0.00013698,3]
[330678905,1719705040815,-500.0,0.00013698,3]
[330678906,1719705040825,-500.0,0.00013698,3]
[330678907,1719705040835,-826.69,0.00013698,3]
[330678908,1719705040844,-500.0,0.00013698,3]
[330678909,1719705040853,-500.0,0.00013698,3]
[330678910,1719705040862,-571.64,0.00013698,3]
[330678911,1719705040872,-500.0,0.00013698,3]
[330678912,1719705040881,-500.0,0.00013698,3]
[330678913,1719705040890,-500.0,0.00013698,3]
[330678914,1719705040899,-1010.46,0.00013698,3]
[330678915,1719705040908,-500.0,0.00013698,3]
[330678916,1719705040917,-500.0,0.00013698,3]
[330678917,1719705040927,-500.0,0.00013698,3]
[330678918,1719705040939,-500.0,0.00013698,3]
[330678919,1719705040948,-500.0,0.00013698,3]
[330678920,1719705040958,-1199.97,0.00013698,3]
[330678921,1719705040970,-545.64,0.00013698,3]
[330678922,1719705040980,-749.36,0.00013698,3]
[330678923,1719705040989,-1298.9,0.00013698,3]
[330678924,1719705040998,-500.0,0.00013698,3]
[330678925,1719705041007,-1476.38,0.00013698,3]
[330678926,1719705041017,-500.0,0.00013698,3]
[330678927,1719705041026,-500.0,0.00013698,3]
[330678928,1719705041035,-1304.22,0.00013698,3]
[330678929,1719705041045,-844.54,0.00013698,3]
[330678930,1719705041058,-914.71,0.00013698,3]
[330678931,1719705041068,-500.0,0.00013698,3]
[330678932,1719705041078,-500.0,0.00013698,3]
[330678933,1719705041089,-1124.05,0.00013698,3]
[330678934,1719705041099,-489.70594494,0.00013698,3]
[330678935,1719705041108,-500.0,0.00013698,3]
[330678936,1719705041117,-661.84,0.00013698,3]
[330678937,1719705041127,-1347.7,0.00013698,3]
[330678938,1719705041136,-600.6,0.00013698,3]
[330678939,1719705041145,-961.71,0.00013698,3]
[330678940,1719705041155,-500.0,0.00013698,3]
[330678941,1719705041164,-578.62,0.00013698,3]
[330678942,1719705041174,-1320.17,0.00013698,3]
[330678943,1719705041184,-2187.66,0.00013698,3]
[330678944,1719705041193,-500.0,0.00013698,3]
[330678945,1719705041202,-403.11619839,0.00013698,3]
[330678946,1719705041211,-653.02,0.00013698,3]
[330678947,1719705041220,-500.0,0.00013698,3]
[330678948,1719705041229,-500.0,0.00013698,3]
[330678949,1719705041238,-261.20591955,0.00013698,3]
[330678950,1719705041248,-864.29,0.00013698,3]
[330678951,1719705041258,-500.0,0.00013698,3]
[330678952,1719705041268,-998.98,0.00013698,3]
[330678953,1719705041277,-500.0,0.00013698,3]
[330678954,1719705041286,-500.0,0.00013698,3]
[330678955,1719705041294,-500.0,0.00013698,3]
[330678956,1719705041304,-3645.54,0.00013698,3]
[330678957,1719705041313,-3303.84,0.00013698,3]
[330678958,1719705041323,-679.73,0.00013698,3]
[330678959,1719705041333,-500.0,0.00013698,3]
[330678960,1719705041342,-2540.53,0.00013698,3]
[330678961,1719705041351,-1559.04445,0.00013698,2]
[330678962,1719705041361,-748.97,0.00013698,3]
[330678963,1719705041370,-468.17509793,0.00013698,3]
[330678964,1719705041379,-1722.82,0.00013698,3]
[330678965,1719705041389,-1599.71,0.00013698,3]
[330678966,1719705041398,-526.77,0.00013698,3]
[330678967,1719705041407,-500.0,0.00013698,3]
[330678968,1719705041417,-1363.47,0.00013698,3]
[330678969,1719705041426,-2025.57,0.00013698,3]
[330678970,1719705041436,-500.0,0.00013698,3]
[330678971,1719705041445,-500.0,0.00013698,3]
[330678972,1719705041454,-500.0,0.00013698,3]
[330678973,1719705041463,-500.0,0.00013698,3]
[330678974,1719705041473,-500.0,0.00013698,3]
[330678975,1719705041482,-500.0,0.00013698,3]
[330678976,1719705041492,-1827.03,0.00013698,3]
[330678977,1719705041501,-500.0,0.00013698,3]
[330678978,1719705041510,-524.95,0.00013698,3]
[330678979,1719705041520,-500.0,0.00013698,3]
[330678980,1719705041529,-595.55,0.00013698,3]
[330678981,1719705041539,-500.0,0.00013698,3]
[330678982,1719705041548,-2138.09,0.00013698,3]
[330678983,1719705041558,-500.0,0.00013698,3]
[330678984,1719705041567,-500.0,0.00013698,3]
[330678985,1719705041576,-535.76,0.00013698,3]
[330678986,1719705041585,-500.0,0.00013698,3]
[330678987,1719705041594,-500.0,0.00013698,3]
[330678988,1719705041603,-764.73,0.00013698,3]
[330678989,1719705041613,-761.94,0.00013698,3]
[330678990,1719705041624,-4710.28,0.00013698,3]
[330678991,1719705041633,-500.0,0.00013698,3]
[330678992,1719705041643,-550.42,0.00013698,3]
[330678993,1719705041653,-500.0,0.00013698,3]
[330678994,1719705041662,-814.93,0.00013698,3]
[330678995,1719705041672,-500.0,0.00013698,3]
[330678996,1719705041684,-500.0,0.00013698,3]
[330678997,1719705041693,-500.0,0.00013698,3]
[330678998,1719705041703,-500.0,0.00013698,3]
[330678999,1719705041712,-500.0,0.00013698,3]
[330679000,1719705041721,-500.0,0.00013698,3]
[330679001,1719705041731,-773.43,0.00013698,3]
[330679002,1719705041741,-500.0,0.00013698,3]
[330679003,1719705041751,-5828.92,0.00013698,3]
[330679004,1719705041760,-500.0,0.00013698,3]
[330679005,1719705041770,-211.87960787,0.00013698,3]
[330679006,1719705041780,-500.0,0.00013698,3]
[330679007,1719705041789,-782.9,0.00013698,3]
[330679008,1719705041799,-1139.32,0.00013698,3]
[330679009,1719705041809,-771.33,0.00013698,3]
[330679010,1719705041818,-500.0,0.00013698,3]
[330679011,1719705041828,-674.03,0.00013698,3]
[330679012,1719705041838,-500.0,0.00013698,3]
[330679013,1719705041847,-1299.22,0.00013698,3]
[330679014,1719705041858,-500.0,0.00013698,3]
[330679015,1719705041867,-869.58,0.00013698,3]
[330679016,1719705041878,-500.0,0.00013698,3]
[330679017,1719705041888,-500.0,0.00013698,3]
[330679018,1719705041897,-500.0,0.00013698,3]
[330679019,1719705041907,-500.0,0.00013698,3]
[330679020,1719705041916,-500.0,0.00013698,3]
[330679021,1719705041925,-500.0,0.00013698,3]
[330679022,1719705041935,-500.0,0.00013698,3]
[330679023,1719705041944,-500.0,0.00013698,3]
[330679024,1719705041953,-1949.29,0.00013698,3]
[330679025,1719705041962,-693.51,0.00013698,3]
[330679026,1719705041972,-500.0,0.00013698,3]
[330679027,1719705041981,-500.0,0.00013698,3]
[330679028,1719705041991,-246.6669621,0.00013698,3]
[330679029,1719705042000,-500.0,0.00013698,3]
[330679030,1719705042009,-820.8,0.00013698,3]
[330679031,1719705042018,-500.0,0.00013698,3]
[330679032,1719705042027,-500.0,0.00013698,3]
[330679033,1719705042036,-560.84,0.00013698,3]
[330679034,1719705042046,-500.0,0.00013698,3]
[330679035,1719705042060,-500.0,0.00013698,3]
[330679036,1719705042069,-640.9671301,0.00013698,3]
[330679037,1719705042079,-3084.38,0.00013698,3]
[330679038,1719705042088,-1347.37,0.00013698,3]
[330679039,1719705042098,-1497.0,0.00013698,3]
[330679040,1719705042107,-1427.74,0.00013698,3]
[330679041,1719705042116,-806.27,0.00013698,3]
[330679042,1719705042126,-500.0,0.00013698,3]
[330679043,1719705042136,-191.0298684,0.00013698,3]
[330679044,1719705042146,-559.76187659,0.00013698,3]
[330679045,1719705042155,-500.0,0.00013698,3]
[330679046,1719705042165,-500.0,0.00013698,3]
[330679047,1719705042174,-1214.52,0.00013698,3]
[330679048,1719705042184,-500.0,0.00013698,3]
[330679049,1719705042194,-500.0,0.00013698,3]
[330679050,1719705042203,-3247.48,0.00013698,3]
[330679051,1719705042212,-1495.46,0.00013698,3]